bitfinex/quotes_BTCUSD_20241229
["timestamp","ask_amount","ask_price","bid_price","bid_amount"]
[1735490385155,2.37308768,93882.0,93859.0,0.1]
[1735490385395,0.14008768,93882.0,93861.0,0.1]
[1735490386713,0.6,93889.0,93861.0,0.1]
[1735490386841,3.83958796,93888.0,93879.0,0.30446074]
[1735490387050,2.427,93887.0,93879.0,0.30446074]
[1735490387250,0.01670896,93888.0,93879.0,0.30446074]
[1735490387491,1.035,93887.0,93879.0,0.30546074]
[1735490387793,0.01670896,93888.0,93879.0,0.30546074]
[1735490387993,0.137,93887.0,93879.0,0.30446074]
[1735490388207,0.137,93887.0,93879.0,0.30346074]
[1735490388410,0.01670896,93888.0,93879.0,0.30346074]
[1735490389452,0.01670896,93888.0,93879.0,0.30446074]
[1735490389786,0.01670896,93888.0,93879.0,0.40844706]
[1735490391178,0.01670896,93888.0,93879.0,0.40744706]
[1735490391507,0.01670896,93888.0,93879.0,0.46123031]
[1735490391951,0.01670896,93888.0,93880.0,0.10398632]
[1735490392144,0.01770896,93888.0,93880.0,0.10398632]
[1735490393351,0.01670896,93888.0,93880.0,0.10398632]
[1735490393767,0.01670896,93888.0,93880.0,0.10698632]
[1735490393973,0.6,93889.0,93880.0,0.10698632]
[1735490395480,0.6,93889.0,93880.0,0.10398632]
[1735490395870,0.6,93889.0,93880.0,0.10698632]
[1735490397130,0.02489141,93888.0,93880.0,0.003]
[1735490397347,0.1296,93875.0,93811.0,0.09543919]
[1735490397537,0.1296,93875.0,93817.0,0.1]
[1735490397538,0.10398632,93867.0,93817.0,0.1]
[1735490397676,3.822879,93866.0,93817.0,0.1]
[1735490397900,0.10398632,93865.0,93817.0,0.1]
[1735490398232,3.822879,93864.0,93831.0,0.0001854]
[1735490398432,0.01671323,93858.0,93831.0,0.0001854]
[1735490398674,0.10398632,93857.0,93831.0,0.0001854]
[1735490398867,3.822879,93856.0,93831.0,0.0001854]
[1735490398989,0.10398632,93855.0,93831.0,0.0001854]
[1735490399188,0.1296,93840.0,93831.0,0.0001854]
[1735490399502,0.10398632,93838.0,93831.0,0.0001854]
[1735490399704,0.10398632,93833.0,93831.0,0.0001854]
[1735490399905,3.822879,93832.0,93831.0,0.0001854]
[1735490400105,3.92686532,93832.0,93831.0,0.0001854]
[1735490401740,3.92686532,93832.0,93800.0,0.0577944]
[1735490401949,3.92686532,93831.0,93800.0,0.05177841]
[1735490402160,0.10398632,93827.0,93800.0,0.05177841]
[1735490402367,0.01671903,93824.0,93800.0,0.15576473]
[1735490402564,0.01671903,93824.0,93801.0,0.11956279]
[1735490402565,0.146,93823.0,93801.0,0.11956279]
[1735490402765,0.01671903,93824.0,93801.0,0.11956279]
[1735490402979,0.01671903,93824.0,93801.0,0.11456279]
[1735490403179,0.00668588,93826.0,93806.0,0.1222]
[1735490403372,0.00668588,93823.0,93809.0,0.1]
[1735490403557,0.00668588,93823.0,93811.0,0.1]
[1735490403758,0.00668588,93823.0,93812.0,0.10398632]
[1735490404236,0.00668588,93822.0,93812.0,0.10398632]
[1735490404646,0.001,93824.0,93812.0,0.10398632]
[1735490404647,0.00668588,93821.0,93812.0,0.10398632]
[1735490405243,0.00668588,93820.0,93816.0,0.10398632]
[1735490405478,0.00668588,93820.0,93817.0,0.02039863]
[1735490405668,0.00668588,93820.0,93818.0,0.10398632]
[1735490406227,0.001,93823.0,93819.0,0.10398632]
[1735490406432,0.001,93823.0,93822.0,0.10398632]
[1735490406860,0.0066835,93823.0,93822.0,0.10398632]
[1735490407031,0.0076835,93823.0,93822.0,0.22642482]
[1735490407238,0.0066835,93823.0,93822.0,0.10298632]
[1735490407574,0.0066835,93823.0,93822.0,0.20298632]
[1735490407753,0.0076835,93823.0,93822.0,0.20298632]
[1735490408162,0.0086835,93823.0,93822.0,0.20998632]
[1735490408368,0.0076835,93823.0,93822.0,0.23098495]
[1735490409569,0.0066835,93823.0,93822.0,0.22398495]
[1735490409774,0.00050893,93826.0,93825.0,0.1]
[1735490409999,0.00050893,93826.0,93825.0,0.10398632]
[1735490410199,0.00050893,93826.0,93825.0,0.20398632]
[1735490410353,0.00050893,93826.0,93825.0,0.22728482]
[1735490410761,0.00719205,93826.0,93825.0,0.22728482]
[1735490410963,0.00819205,93826.0,93825.0,0.23528482]
[1735490411165,0.00719205,93826.0,93825.0,0.22728482]
[1735490411384,0.00719205,93826.0,93825.0,0.23628482]
[1735490411627,0.00919205,93826.0,93825.0,0.24428482]
[1735490411840,0.00919205,93826.0,93825.0,0.22098632]
[1735490412043,0.00919205,93826.0,93825.0,0.12098632]
[1735490412215,0.00250893,93826.0,93825.0,0.12098632]
[1735490413348,0.00150893,93826.0,93825.0,0.11298632]
[1735490413656,0.00819273,93826.0,93825.0,0.11298632]
[1735490413944,0.00819273,93826.0,93825.0,0.11238632]
[1735490414240,0.00150893,93826.0,93825.0,0.12362495]
[1735490414649,0.00250893,93826.0,93825.0,0.13262495]
[1735490414851,0.00250893,93826.0,93825.0,0.12138632]
[1735490415068,0.00150893,93826.0,93825.0,0.11238632]
[1735490415454,0.00250893,93826.0,93825.0,0.12038632]
[1735490417397,0.00250893,93826.0,93825.0,0.22038632]
[1735490418577,0.00250893,93826.0,93825.0,0.29878632]
[1735490418780,0.00250893,93826.0,93825.0,0.32566495]
[1735490418981,0.000171,93832.0,93831.0,0.1]
[1735490419321,0.000171,93832.0,93831.0,0.20398632]
[1735490421013,0.000171,93832.0,93831.0,0.20505157]
[1735490421214,0.001171,93832.0,93831.0,0.21405157]
[1735490421416,0.001171,93832.0,93831.0,0.26214459]
[1735490421995,0.001171,93832.0,93831.0,0.21298632]
[1735490422339,0.001171,93832.0,93831.0,0.21998632]
[1735490424275,0.001171,93832.0,93831.0,0.10398632]
[1735490425624,0.001171,93832.0,93802.0,0.09533259]
[1735490425789,0.00132356,93832.0,93811.0,0.10398632]
[1735490426642,0.00668348,93831.0,93811.0,0.10398632]
[1735490427266,0.00668348,93831.0,93812.0,0.00093159]
[1735490427499,0.00668348,93830.0,93813.0,0.10398632]
[1735490428228,0.00032356,93832.0,93813.0,0.10398632]
[1735490428426,0.2,93825.0,93804.0,0.000106]
[1735490428628,0.1,93823.0,93812.0,0.009]
[1735490428837,0.377,93822.0,93812.0,0.011]
[1735490429079,0.01671738,93828.0,93812.0,0.011]
[1735490429318,0.01671738,93828.0,93813.0,0.10462259]
[1735490429537,0.01671738,93828.0,93813.0,0.11618485]
[1735490430884,0.01671738,93828.0,93813.0,0.10462259]
[1735490431086,0.0011706,93831.0,93813.0,0.10462259]
[1735490431257,0.0001706,93831.0,93813.0,0.10462259]
[1735490432239,0.0001706,93831.0,93814.0,0.10398632]
[1735490432418,0.0001706,93831.0,93815.0,0.00063625]
[1735490432621,0.0001706,93831.0,93816.0,0.11445711]
[1735490432817,0.0001706,93831.0,93817.0,0.00063623]
[1735490433004,0.0001706,93831.0,93818.0,0.10398632]
[1735490433209,0.0001706,93831.0,93822.0,0.10398632]
[1735490433428,0.0001706,93831.0,93823.0,0.00063618]
[1735490433639,0.0001706,93831.0,93824.0,0.11444857]
[1735490433859,0.0011706,93831.0,93825.0,0.00063616]
[1735490434057,0.0011706,93831.0,93826.0,0.10398632]
[1735490434253,0.0011706,93831.0,93827.0,0.00063614]
[1735490434464,0.0011706,93831.0,93828.0,0.10398632]
[1735490434686,0.0011706,93831.0,93829.0,0.00063612]
[1735490434897,0.0011706,93831.0,93830.0,0.10398632]
[1735490435135,0.0011706,93831.0,93830.0,0.11549479]
[1735490437365,0.0011706,93831.0,93830.0,0.12249479]
[1735490437767,0.0021706,93831.0,93830.0,0.12249479]
[1735490437970,0.0011706,93831.0,93830.0,0.12249479]
[1735490438215,0.0011706,93831.0,93830.0,0.11098632]
[1735490438429,0.0021706,93831.0,93830.0,0.016]
[1735490441241,0.0001706,93831.0,93811.0,0.00115096]
[1735490441443,0.00322194,93830.0,93812.0,0.10398632]
[1735490441645,0.00322194,93830.0,93813.0,0.00106563]
[1735490441852,0.00322194,93830.0,93814.0,0.10398632]
[1735490442851,0.1,93822.0,93811.0,0.0090853]
[1735490442987,1.788,93821.0,93812.0,0.10398632]
[1735490443190,0.0032141,93820.0,93811.0,8.53e-05]
[1735490443417,0.1,93828.0,93811.0,8.53e-05]
[1735490443620,3.05492189,93827.0,93811.0,8.53e-05]
[1735490443803,3.822879,93826.0,93811.0,8.53e-05]
[1735490444002,3.07468559,93826.0,93811.0,8.53e-05]
[1735490444201,2.73820064,93825.0,93811.0,0.0050853]
[1735490444406,2.675,93824.0,93811.0,0.0050853]
[1735490444842,0.00320064,93823.0,93811.0,8.53e-05]
[1735490445050,2.554,93822.0,93811.0,0.0010853]
[1735490445276,0.00320064,93821.0,93811.0,0.0010853]
[1735490445593,0.00320064,93821.0,93814.0,0.006]
[1735490445823,0.00320064,93820.0,93814.0,0.006]
[1735490446038,0.09356179,93829.0,93812.0,0.10398632]
[1735490446246,1.78320064,93828.0,93812.0,0.10398632]
[1735490446450,0.01671781,93821.0,93811.0,0.0050853]
[1735490446655,0.01671781,93821.0,93811.0,8.53e-05]
[1735490446786,0.00319844,93820.0,93811.0,8.53e-05]
[1735490446994,0.00319844,93820.0,93814.0,0.003]
[1735490448268,0.00319844,93820.0,93811.0,0.0020853]
[1735490448467,0.00319844,93820.0,93811.0,8.53e-05]
[1735490448693,0.00319844,93820.0,93814.0,0.003]
[1735490449326,0.00319844,93820.0,93815.0,0.10505202]
[1735490449537,0.00319844,93820.0,93816.0,0.01071373]
[1735490449735,0.001,93820.0,93817.0,0.10505199]
[1735490451542,0.001,93820.0,93818.0,0.10398632]
[1735490451665,0.001,93820.0,93819.0,0.10505187]
[1735490451871,0.002,93820.0,93819.0,0.10505187]
[1735490452274,0.001,93820.0,93819.0,0.10505187]
[1735490453098,0.002,93820.0,93819.0,0.11405187]
[1735490454161,0.003,93820.0,93819.0,0.11405187]
[1735490454792,0.002,93820.0,93819.0,0.11405187]
[1735490455266,0.003,93820.0,93819.0,0.11898632]
[1735490457025,0.003,93820.0,93819.0,0.015]
[1735490457234,0.00620946,93820.0,93819.0,0.015]
[1735490457643,0.10620946,93820.0,93819.0,0.015]
[1735490458006,0.10614105,93820.0,93819.0,0.009]
[1735490458261,0.12285897,93820.0,93819.0,0.009]
[1735490458437,3.94773797,93820.0,93819.0,0.009]
[1735490458767,3.94680638,93820.0,93819.0,0.009]
[1735490459069,3.94280638,93820.0,93811.0,8.53e-05]
[1735490459268,3.82381059,93819.0,93811.0,8.53e-05]
[1735490459467,3.822879,93818.0,93811.0,8.53e-05]
[1735490459629,0.1478,93812.0,93811.0,8.53e-05]
[1735490459832,0.1,93818.0,93811.0,8.53e-05]
[1735490460039,0.00316763,93817.0,93811.0,0.10407162]
[1735490460242,0.01971792,93820.0,93811.0,8.53e-05]
[1735490460444,0.00316763,93819.0,93811.0,8.53e-05]
[1735490461105,0.00316763,93819.0,93811.0,0.10407162]
[1735490461502,0.01671792,93820.0,93811.0,0.10407162]
[1735490461851,0.01671792,93820.0,93811.0,0.10607162]
[1735490462267,0.01671792,93820.0,93811.0,0.10407162]
[1735490462475,0.01671792,93820.0,93819.0,0.001]
[1735490462689,0.0001708,93828.0,93819.0,0.10498632]
[1735490462864,0.0001708,93828.0,93820.0,0.11448495]
[1735490464666,0.0001708,93828.0,93820.0,0.10398632]
[1735490465627,0.0001708,93828.0,93820.0,0.10598632]
[1735490465968,0.0001708,93828.0,93820.0,0.10398632]
[1735490466168,0.0001708,93828.0,93820.0,0.10598632]
[1735490466379,0.0011708,93828.0,93820.0,0.11198632]
[1735490466579,0.0011708,93828.0,93820.0,0.10998632]
[1735490466988,0.0011708,93828.0,93821.0,0.01099863]
[1735490467186,0.0011708,93828.0,93822.0,0.10398632]
[1735490467388,0.0011708,93828.0,93820.0,0.009]
[1735490467643,0.0011708,93828.0,93821.0,0.10398632]
[1735490468274,0.0011708,93828.0,93827.0,0.10398632]
[1735490468685,0.0001708,93828.0,93827.0,0.10398632]
[1735490468888,0.0001708,93828.0,93827.0,0.12298495]
[1735490469146,0.0011708,93828.0,93827.0,0.12298495]
[1735490469403,0.0001708,93828.0,93827.0,0.12298495]
[1735490469916,0.0011708,93828.0,93827.0,0.13198495]
[1735490471033,0.0011708,93828.0,93827.0,0.13305026]
[1735490472282,0.0001708,93828.0,93827.0,0.10505163]
[1735490472488,0.0011708,93828.0,93827.0,0.11105163]
[1735490472639,0.0011708,93828.0,93827.0,0.10998632]
[1735490472838,0.0011708,93828.0,93827.0,0.11898632]
[1735490473706,0.0011708,93828.0,93827.0,0.10998632]
[1735490473916,0.0011708,93828.0,93827.0,0.11898632]
[1735490474530,0.0001708,93828.0,93827.0,0.11298632]
[1735490474704,0.0001708,93828.0,93827.0,0.12198632]
[1735490474881,0.0011708,93828.0,93827.0,0.12198632]
[1735490475067,0.0011708,93828.0,93827.0,0.11298632]
[1735490475280,0.0011708,93828.0,93811.0,8.53e-05]
[1735490475281,0.0001708,93828.0,93811.0,8.53e-05]
[1735490475497,0.0001708,93828.0,93812.0,0.10398632]
[1735490475700,0.0001708,93828.0,93827.0,0.005]
[1735490476874,0.0001708,93828.0,93827.0,0.014]
[1735490477077,0.0001708,93828.0,93813.0,0.00106565]
[1735490477274,0.0001708,93828.0,93814.0,0.10398632]
[1735490477477,0.0021708,93828.0,93814.0,0.10398632]
[1735490477825,0.0011708,93828.0,93814.0,0.10398632]
[1735490478039,0.0001708,93828.0,93815.0,0.00106569]
[1735490478231,0.0001708,93828.0,93817.0,0.10398632]
[1735490478439,0.0001708,93828.0,93827.0,0.003]
[1735490478647,0.0001708,93828.0,93827.0,0.10398632]
[1735490478871,0.0001708,93830.0,93827.0,0.10398632]
[1735490478872,0.09281832,93840.0,93827.0,0.10398632]
[1735490479062,0.09287804,93840.0,93828.0,0.10505178]
[1735490479247,5.972e-05,93840.0,93828.0,0.10505178]
[1735490479475,5.972e-05,93840.0,93828.0,0.11555696]
[1735490480623,5.972e-05,93840.0,93828.0,0.10505178]
[1735490480826,5.972e-05,93840.0,93829.0,0.00106554]
[1735490481029,5.972e-05,93840.0,93830.0,0.10398632]
[1735490481274,5.972e-05,93840.0,93831.0,0.00106551]
[1735490481503,5.972e-05,93840.0,93832.0,0.10398632]
[1735490481629,5.972e-05,93840.0,93833.0,0.01247064]
[1735490481832,5.972e-05,93840.0,93834.0,0.10398632]
[1735490482036,5.972e-05,93840.0,93835.0,0.00106545]
[1735490482234,5.972e-05,93840.0,93836.0,0.10398632]
[1735490482435,5.972e-05,93840.0,93837.0,0.00106542]
[1735490482649,5.972e-05,93840.0,93838.0,0.10398632]
[1735490482837,5.972e-05,93840.0,93839.0,0.00106545]
[1735490483192,5.972e-05,93840.0,93839.0,0.10505177]
[1735490485500,5.972e-05,93840.0,93839.0,0.11105177]
[1735490486091,5.972e-05,93840.0,93839.0,0.11505177]
[1735490486286,5.972e-05,93840.0,93839.0,0.12169746]
[1735490486462,5.972e-05,93840.0,93839.0,0.11769746]
[1735490487451,5.972e-05,93840.0,93839.0,0.10505177]
[1735490487652,5.972e-05,93840.0,93839.0,0.23715177]
[1735490487905,5.972e-05,93840.0,93839.0,0.24608632]
[1735490488242,0.00307323,93883.0,93846.0,0.09692677]
[1735490488497,0.0034157,93882.0,93848.0,0.10398632]
[1735490488711,0.0034157,93882.0,93849.0,0.02009131]
[1735490489003,0.0034157,93882.0,93850.0,0.10398632]
[1735490489521,0.0034157,93882.0,93855.0,0.10398632]
[1735490489723,0.0054157,93882.0,93857.0,0.10398632]
[1735490489922,0.00215289,93882.0,93860.0,0.10398632]
[1735490491670,0.00215289,93882.0,93862.0,0.10398632]
[1735490491874,0.00015289,93882.0,93862.0,0.10398632]
[1735490492620,0.00015289,93882.0,93870.0,0.10398632]
[1735490492779,0.00015289,93882.0,93871.0,0.02009131]
[1735490492988,0.00015289,93882.0,93872.0,0.10398632]
[1735490494205,0.00015289,93882.0,93862.0,0.007]
[1735490494407,0.00015289,93882.0,93863.0,0.10398632]
[1735490494904,0.00015289,93882.0,93871.0,0.007]
[1735490495240,0.00015289,93882.0,93863.0,0.10398632]
[1735490495241,0.00327092,93881.0,93863.0,0.10398632]
[1735490495591,0.00015289,93882.0,93864.0,0.01039863]
[1735490495719,0.00015289,93882.0,93865.0,0.10398632]
[1735490496321,0.00015289,93882.0,93871.0,0.004]
[1735490497208,0.00015289,93882.0,93872.0,0.10398632]
[1735490499294,0.00015289,93882.0,93872.0,0.10898632]
[1735490499494,0.00015289,93882.0,93873.0,0.11488495]
[1735490499703,0.00015289,93882.0,93875.0,0.10398632]
[1735490499898,0.00015289,93882.0,93876.0,0.10398632]
[1735490500316,0.00015289,93882.0,93872.0,0.005]
[1735490500665,0.08862187,93881.0,93872.0,0.005]
[1735490500792,0.00307323,93875.0,93872.0,0.005]
[1735490500997,0.00307323,93875.0,93860.0,8.53e-05]
[1735490501270,0.00379347,93874.0,93860.0,8.53e-05]
[1735490501507,3.92595223,93873.0,93872.0,0.002]
[1735490501708,4.11173855,93873.0,93872.0,0.002]
[1735490501924,4.11547319,93873.0,93860.0,8.53e-05]
[1735490502124,3.92686532,93872.0,93860.0,8.53e-05]
[1735490502329,0.1,93861.0,93860.0,8.53e-05]
[1735490502642,0.1,93861.0,93860.0,0.0010853]
[1735490502967,0.10373464,93861.0,93860.0,8.53e-05]
[1735490503747,0.1,93861.0,93860.0,8.53e-05]
[1735490505086,0.101,93861.0,93860.0,8.53e-05]
[1735490505322,1.355,93861.0,93860.0,8.53e-05]
[1735490505469,1.32,93861.0,93860.0,8.53e-05]
[1735490505674,1.18,93861.0,93860.0,8.53e-05]
[1735490505897,0.29807323,93861.0,93860.0,8.53e-05]
[1735490506275,0.24607323,93861.0,93860.0,8.53e-05]
[1735490506503,0.00407323,93861.0,93860.0,8.53e-05]
[1735490506649,0.10407323,93861.0,93860.0,8.53e-05]
[1735490509358,0.001,93861.0,93860.0,8.53e-05]
[1735490511221,0.00407323,93861.0,93860.0,8.53e-05]
[1735490512273,0.00307323,93861.0,93860.0,8.53e-05]
[1735490512499,0.00307323,93861.0,93860.0,0.0010853]
[1735490512874,0.00307323,93861.0,93860.0,0.0050853]
[1735490513303,0.00307323,93861.0,93860.0,8.53e-05]
[1735490513517,0.00307323,93861.0,93860.0,0.0010853]
[1735490513904,0.00307323,93861.0,93860.0,8.53e-05]
[1735490514112,0.00307323,93864.0,93860.0,8.53e-05]
[1735490514311,0.0818,93873.0,93860.0,8.53e-05]
[1735490514312,0.1,93869.0,93860.0,8.53e-05]
[1735490514510,0.00307323,93870.0,93860.0,0.0010853]
[1735490514511,0.10307323,93870.0,93860.0,0.0010853]
[1735490514716,0.00307323,93868.0,93860.0,0.0010853]
[1735490515264,0.01988854,93876.0,93860.0,0.0010853]
[1735490515461,1.307,93875.0,93860.0,0.0010853]
[1735490515792,1.239,93874.0,93860.0,0.0010853]
[1735490515926,0.01988854,93876.0,93860.0,0.0010853]
[1735490516331,0.14038437,93884.0,93860.0,0.0010853]
[1735490516795,0.14038437,93884.0,93860.0,8.53e-05]
[1735490516970,0.002,93869.0,93860.0,8.53e-05]
[1735490517210,0.002,93869.0,93861.0,0.10398632]
[1735490517426,0.002,93869.0,93862.0,0.01040716]
[1735490517735,0.004,93880.0,93862.0,0.11439348]
[1735490517958,0.007,93880.0,93863.0,0.10496384]
[1735490518186,0.004,93880.0,93863.0,0.10496384]
[1735490518743,0.004,93880.0,93864.0,0.0808]
[1735490518906,0.004,93880.0,93865.0,0.12498944]
[1735490519968,0.01671039,93892.0,93865.0,0.12498944]
[1735490520141,0.076,93897.0,93865.0,0.10398632]
[1735490520358,0.076,93897.0,93862.0,0.01540716]
[1735490520518,0.01670979,93880.0,93863.0,0.10398632]
[1735490520856,0.829,93879.0,93862.0,0.005]
[1735490521041,0.076,93877.0,93862.0,0.004]
[1735490521240,3.822879,93876.0,93862.0,0.004]
[1735490522239,0.481,93876.0,93862.0,0.004]
[1735490522436,0.278,93876.0,93860.0,8.53e-05]
[1735490522664,0.712,93879.0,93860.0,8.53e-05]
[1735490522830,0.855,93879.0,93863.0,0.001]
[1735490523031,0.855,93879.0,93860.0,8.53e-05]
[1735490524038,2.831,93881.0,93860.0,8.53e-05]
[1735490524655,0.001,93876.0,93860.0,8.53e-05]
[1735490524855,0.41,93875.0,93860.0,8.53e-05]
[1735490525057,0.41,93875.0,93862.0,8.53e-05]
[1735490525257,3.822879,93881.0,93862.0,8.53e-05]
[1735490525483,0.00012933,93874.0,93862.0,8.53e-05]
[1735490525689,3.822879,93873.0,93862.0,8.53e-05]
[1735490525883,0.10398632,93880.0,93862.0,8.53e-05]
[1735490526103,0.00012933,93873.0,93862.0,8.53e-05]
[1735490528542,0.01671241,93872.0,93862.0,8.53e-05]
[1735490531085,0.814,93871.0,93862.0,8.53e-05]
[1735490531469,0.0001313,93870.0,93862.0,8.53e-05]
[1735490531623,1.384,93869.0,93862.0,8.53e-05]
[1735490533268,0.0001313,93868.0,93862.0,8.53e-05]
[1735490533444,3.822879,93867.0,93862.0,8.53e-05]
[1735490533827,0.01671241,93872.0,93862.0,8.53e-05]
[1735490533828,0.00013223,93866.0,93862.0,8.53e-05]
[1735490534652,0.00013223,93866.0,93862.0,0.0010853]
[1735490535393,3.950079,93865.0,93862.0,2.3575853]
[1735490535605,3.822879,93864.0,93862.0,2.3585853]
[1735490535906,3.82301123,93864.0,93862.0,2.3615853]
[1735490536137,3.822879,93863.0,93862.0,2.3615853]
[1735490536337,3.822879,93863.0,93862.0,2.3575853]
[1735490536601,3.82301123,93863.0,93862.0,2.3575853]
[1735490537012,3.82301123,93863.0,93862.0,2.3625853]
[1735490537200,3.83972436,93863.0,93862.0,2.3625853]
[1735490537754,0.53383168,93863.0,93862.0,2.33965201]
[1735490537936,0.53383168,93863.0,93862.0,2.07468199]
[1735490537937,0.64247742,93863.0,93862.0,2.07468199]
[1735490538149,0.55607742,93863.0,93862.0,1.99738199]
[1735490538936,0.55807742,93863.0,93862.0,1.99738199]
[1735490539139,0.55807742,93863.0,93862.0,1.99746729]
[1735490539349,0.56276317,93863.0,93862.0,1.99746729]
[1735490539755,0.56876317,93863.0,93862.0,1.99346729]
[1735490539881,0.46876317,93863.0,93862.0,1.99346729]
[1735490540290,0.47076317,93863.0,93862.0,1.99346729]
[1735490540901,0.46876317,93863.0,93862.0,1.99346729]
[1735490541296,0.47276317,93863.0,93862.0,1.99446729]
[1735490541533,0.47833116,93863.0,93862.0,1.99446729]
[1735490542259,0.47233116,93863.0,93862.0,1.99346729]
[1735490542591,0.46564541,93863.0,93862.0,1.99346729]
[1735490542717,0.47364541,93863.0,93862.0,1.99446729]
[1735490542926,0.46964541,93863.0,93862.0,1.99346729]
[1735490543123,0.46964541,93863.0,93862.0,1.99246729]
[1735490543320,0.46664541,93863.0,93862.0,1.99346729]
[1735490543533,0.51537241,93863.0,93862.0,1.99446729]
[1735490543730,0.51037241,93863.0,93862.0,1.99346729]
[1735490543961,0.49365928,93863.0,93862.0,1.99346729]
[1735490544166,0.50034466,93863.0,93862.0,1.99346729]
[1735490544573,0.29434466,93863.0,93862.0,1.99446729]
[1735490544725,4.11722366,93863.0,93862.0,1.99446729]
[1735490546362,4.11053828,93863.0,93862.0,1.99446729]
[1735490547192,4.12725438,93863.0,93862.0,1.99446729]
[1735490549000,4.14731098,93863.0,93862.0,1.99446729]
[1735490549412,4.14731098,93863.0,93862.0,1.98788176]
[1735490549612,4.14731098,93863.0,93862.0,1.98333849]
[1735490549818,4.24731098,93863.0,93862.0,1.98333849]
[1735490550032,4.25399633,93863.0,93862.0,1.98333849]
[1735490550988,4.24799633,93863.0,93862.0,1.98233849]
[1735490551326,4.24099633,93863.0,93862.0,1.98133849]
[1735490551552,4.24099633,93863.0,93862.0,1.98233849]
[1735490551785,4.24599633,93863.0,93862.0,1.98233849]
[1735490552300,4.24616693,93863.0,93862.0,1.98233849]
[1735490552495,4.25516693,93863.0,93862.0,1.98333849]
[1735490553352,4.35876693,93863.0,93862.0,0.96413476]
[1735490553552,4.35876693,93863.0,93862.0,0.92251619]
[1735490553969,4.32230888,93863.0,93862.0,0.92251619]
[1735490554173,0.9198297,93811.0,93800.0,0.04685132]
[1735490554378,0.1,93827.0,93800.0,0.04685132]
[1735490554379,3.92669502,93810.0,93800.0,0.04685132]
[1735490554581,0.10398632,93801.0,93800.0,0.04671851]
[1735490555436,3.92669502,93801.0,93800.0,0.04671851]
[1735490555715,3.92669502,93801.0,93800.0,0.04722744]
[1735490556251,3.83581602,93801.0,93800.0,0.04822744]
[1735490556502,0.9268297,93801.0,93800.0,0.12782744]
[1735490557796,0.7987297,93801.0,93800.0,0.12782744]
[1735490558397,0.8017297,93801.0,93800.0,0.12782744]
[1735490559168,0.7947297,93801.0,93800.0,0.12682744]
[1735490559393,0.7957297,93801.0,93800.0,0.12682744]
[1735490560073,0.7947297,93801.0,93800.0,0.12682744]
[1735490560376,0.7917297,93801.0,93800.0,0.12682744]
[1735490560578,0.002,93801.0,93800.0,0.12682744]
[1735490560782,0.7917297,93812.0,93800.0,0.12682744]
[1735490560980,0.77411036,93813.0,93800.0,0.12682744]
[1735490561736,0.001,93801.0,93800.0,0.12682744]
[1735490561886,0.77411036,93801.0,93800.0,0.12682744]
[1735490562111,0.77411036,93813.0,93800.0,0.12682744]
[1735490563101,0.001,93801.0,93800.0,0.12682744]
[1735490563315,0.69701036,93801.0,93800.0,0.12682744]
[1735490563522,0.69701036,93813.0,93800.0,0.12682744]
[1735490563695,0.67949762,93813.0,93800.0,0.12682744]
[1735490563906,0.68049762,93813.0,93800.0,0.12682744]
[1735490564205,0.67949762,93812.0,93800.0,0.12682744]
[1735490564421,0.67949762,93812.0,93801.0,0.0462]
[1735490564852,1.71730262,93847.0,93801.0,0.0462]
[1735490565023,0.10398632,93846.0,93802.0,0.01730274]
[1735490565396,0.78348394,93832.0,93800.0,0.05022744]
[1735490565627,1.54198862,93831.0,93800.0,0.05022744]
[1735490565826,0.10398632,93830.0,93800.0,0.04722744]
[1735490565973,1.66506162,93829.0,93800.0,0.04722744]
[1735490566181,0.10398632,93828.0,93800.0,0.04722744]
[1735490566384,0.95241862,93827.0,93800.0,0.04722744]
[1735490566613,0.10398632,93826.0,93801.0,0.0784]
[1735490566814,0.99095162,93825.0,93801.0,0.0784]
[1735490567034,0.10398632,93824.0,93801.0,0.0784]
[1735490567224,0.01672125,93820.0,93801.0,0.0784]
[1735490567426,0.67949762,93819.0,93802.0,0.0462]
[1735490567631,0.67949762,93819.0,93802.0,0.06338274]
[1735490568753,0.67949762,93819.0,93802.0,0.0462]
[1735490571374,0.68149762,93819.0,93802.0,0.0462]
[1735490571580,0.67949762,93818.0,93802.0,0.0462]
[1735490572731,0.67949762,93818.0,93803.0,0.10505207]
[1735490572953,0.67949762,93818.0,93805.0,0.0462]
[1735490573152,0.67949762,93818.0,93807.0,0.0462]
[1735490573326,0.67949762,93818.0,93809.0,0.0462]
[1735490573525,0.62949762,93817.0,93811.0,0.1462]
[1735490573739,0.62949762,93818.0,93812.0,0.18338632]
[1735490573943,0.62949762,93818.0,93813.0,0.0794]
[1735490574141,0.32483112,93817.0,93815.0,0.0758]
[1735490574429,0.32483112,93817.0,93816.0,0.10398632]
[1735490574618,0.09344779,93866.0,93816.0,0.13524152]
[1735490574839,0.001,93818.0,93817.0,0.10398632]
[1735490575064,0.10398632,93862.0,93817.0,0.10398632]
[1735490575258,0.0001708,93826.0,93818.0,0.01682002]
[1735490575470,0.0001708,93826.0,93819.0,0.10398632]
[1735490577836,0.0001708,93826.0,93825.0,0.1758]
[1735490577837,0.001,93826.0,93825.0,0.1758]
[1735490578073,0.01671505,93870.0,93827.0,0.033]
[1735490578274,0.01671505,93870.0,93828.0,0.14055495]
[1735490579678,0.01671505,93870.0,93830.0,0.10398632]
[1735490579881,0.01671505,93870.0,93831.0,0.0758]
[1735490580063,0.01671505,93870.0,93832.0,0.10398632]
[1735490581490,0.01671505,93870.0,93833.0,0.0758]
[1735490581690,0.01671505,93870.0,93834.0,0.27304766]
[1735490582123,0.01671505,93870.0,93835.0,0.0758]
[1735490582332,0.01671505,93870.0,93836.0,0.10398632]
[1735490582532,0.0021706,93863.0,93839.0,0.1]
[1735490582730,0.0021706,93863.0,93840.0,0.10398632]
[1735490582935,0.0011706,93863.0,93841.0,0.03488477]
[1735490583132,0.0011706,93863.0,93842.0,0.10398632]
[1735490583483,0.0021706,93863.0,93842.0,0.10398632]
[1735490584370,0.0021706,93863.0,93843.0,0.124]
[1735490584607,0.10398632,93862.0,93834.0,0.002]
[1735490584785,0.01061569,93861.0,93834.0,0.002]
[1735490584988,0.11460201,93861.0,93834.0,0.002]
[1735490585527,0.11460201,93861.0,93832.0,0.0758]
[1735490585732,0.11460201,93861.0,93832.0,0.17978632]
[1735490585933,0.11460201,93861.0,93841.0,0.002]
[1735490586175,0.01167726,93860.0,93841.0,0.002]
[1735490586398,0.01167726,93860.0,93832.0,0.17978632]
[1735490586735,0.01167726,93860.0,93834.0,0.002]
[1735490587152,0.01671417,93857.0,93832.0,0.17978632]
[1735490587730,0.01671417,93857.0,93841.0,0.002]
[1735490588081,0.01671417,93857.0,93842.0,0.10398632]
[1735490588297,0.01671417,93857.0,93843.0,0.01059863]
[1735490588499,0.01671417,93857.0,93841.0,0.002]
[1735490589238,0.17978632,93856.0,93841.0,0.002]